Cogmind - Beta 13 @@@ ROGUE MODE // 2024.03.31 @ 16:31:15 Player: sportsracer48 Result: Self-destructed Performance ------------- Evolutions (2) 1000 Regions Visited (3) 600 Robots Destroyed (18) 90 Value Destroyed (382) 382 Prototype IDs (2) 40 Alien Tech Used (0) 0 Bonus (0) 0 TOTAL SCORE: 2112 Bonus ------- None Cogmind --------- Core Integrity 453/550 Matter 254/300 Energy 100/100 System Corruption 0% Temperature Cool (72) Movement Hovering (60) Location -8/Materials Parts ------- > --- POWER (2) -------- (None) > --- PROPULSION (4) --- Airjet Improved Flight Unit > --- UTILITY (3) ------ Heat Sink Improved Terrain Scan Processor Utility Shielding > --- WEAPON (2) ------- (None) > --- INVENTORY (5) ---- Improved Ion Engine Improved Ion Engine Deuterium Engine Peak State ------------ > --- POWER ------------ Improved Ion Engine Improved Ion Engine > --- PROPULSION ------- VTOL Module Improved Flight Unit Improved Flight Unit Improved Flight Unit > --- UTILITY ---------- Heat Sink Improved Terrain Scan Processor Utility Shielding > --- WEAPON ----------- Heavy EM Shotgun Particle Gun > --- INVENTORY -------- Improved Ion Engine Airjet VTOL Module VTOL Module [Rating: 26] Favorites ----------- Power Light Ion Engine Engine Light Ion Engine Propulsion Aluminum Leg Leg Aluminum Leg Hover Unit Airjet Flight Unit Improved Flight Unit Utility Large Storage Unit Device Seismic Detector Storage Large Storage Unit Processor Improved Terrain Scan Processor Protection Utility Shielding Weapon Light Assault Rifle Energy Gun Particle Gun Ballistic Gun Light Assault Rifle Launcher Grenade Launcher Special Weapon Mining Laser Impact Weapon Hammer Build | -11 -10 -9 -8 ------- Run | Yrd Mat Mat Mat Slots Evolved 4 | . . 2 2 Power 1 | . . . 1 Propulsion 2 | . . 2 . Utility 1 | . . . 1 Weapon . | . . . . Parts Attached 37 | 7 9 11 10 Power 4 | 1 1 1 1 Engine 4 | 1 1 1 1 Core . | . . . . Reactor . | . . . . Propulsion 10 | 2 1 4 3 Treads . | . . . . Leg 3 | 2 1 . . Wheel . | . . . . Hover 1 | . . . 1 Flight 6 | . . 4 2 Utility 11 | 2 3 3 3 Device 6 | 2 2 1 1 Storage 3 | . 1 1 1 Processor 1 | . . . 1 Hackware . | . . . . Protection 1 | . . 1 . Artifact . | . . . . Weapon 12 | 2 4 3 3 Energy Gun 5 | . . 2 3 Energy Cannon . | . . . . Ballistic Gun 3 | 2 1 . . Ballistic Cannon . | . . . . Launcher 1 | . . 1 . Special Weapon 2 | . 2 . . Impact Weapon 1 | . 1 . . Slashing Weapon . | . . . . Piercing Weapon . | . . . . Special Melee Weapon . | . . . . Unidentified Prototypes 1 | . . 1 . Parts Lost 17 | . 8 . 9 Power 3 | . 2 . 1 Propulsion 8 | . 3 . 5 Utility 1 | . 1 . . Weapon 5 | . 2 . 3 Highest Loss Streak 7 | . 2 . 7 To Critical Strikes . | . . . . Average Slot Usage (%) 77 | . 76 70 85 Engine 5 | . 5 6 9 Leg 14 | . 18 . . Flight 7 | . . 24 35 Device 12 | . 13 5 9 Storage 10 | . 13 5 . Processor 1 | . . . 7 Protection 2 | . . 11 9 Energy Gun 2 | . . 6 14 Ballistic Gun 11 | . 14 . . Special Weapon 3 | . 4 . . Impact Weapon 4 | . 5 5 . Naked Turns . | . . . . Heaviest Build 27 | 8 27 15 16 Greatest Support 20 | 20 20 19 19 Greatest Overweight (x) 7 | . 7 1 1 Average Overweight (x) . | . 1 . . Largest Inventory Capacity 15 | 5 15 5 10 Average Capacity 10 | 5 14 5 5 Most Carried 7 | 5 7 5 5 Average Carried 4 | 2 4 4 4 Final Capacity 5 | 5 5 5 5 Final Carried 5 | 4 5 5 3 Class Distribution -------------------- 76% | Mutant 14% | Sprinter 8% | Scavenger-Mutant Dominant Class ---------------- Mutant | -10/Materials Sprinter | -9/Materials Sprinter | -8/Materials Resources | -11 -10 -9 -8 ----------- Run | Yrd Mat Mat Mat Matter Collected 463 | 286 103 18 56 Remotely . | . . . . Salvage Created 433 | 93 160 66 114 Parts 34 | 9 5 8 12 Haulers Intercepted . | . . . . Recyclers Shooed . | . . . . Parts Field Recycled . | . . . . Retrieved Matter . | . . . . Parts Self-Destructed . | . . . . Prevented . | . . . . Kills | -11 -10 -9 -8 ------- Run | Yrd Mat Mat Mat Combat Hostiles Destroyed 14 | 1 5 4 4 Guns 9 | 1 4 . 4 AOE 4 | . . 4 . Classes Destroyed 6 | 2 1 1 2 Worker 1 | . . 1 . Tunneler 2 | 2 . . . Watcher 1 | . . . 1 Swarmer 7 | . 1 3 3 Grunt 6 | 1 4 1 . Sentry 1 | . . . 1 Best Kill Streak 5 | 1 1 5 3 Combat Bots Only 4 | 1 1 4 3 Max Kills in Single Turn 3 | 1 1 3 1 Gunslinging . | . . . . Exploded 3 | . . 3 . Melee . | . . . . Uniques/NPCs Destroyed . | . . . . Combat | -11 -10 -9 -8 -------- Run | Yrd Mat Mat Mat Hostile Shots Fired 152 | 2 80 12 58 Missed 58 | 1 26 7 24 Damage Taken 1538 | 11 881 125 521 Core 269 | . 172 . 97 Absorbed by Shields . | . . . . Redirected to Shielding 8 | . . 5 3 Core Remaining (%) 77 | 100 31 100 . Volleys Fired 63 | 4 44 2 13 Largest 2 | 2 2 1 2 Hottest 115 | 40 100 30 115 Shots Fired 84 | 8 60 2 14 Gun 65 | 8 44 . 13 Cannon . | . . . . Launcher 3 | . . 2 1 Special 16 | . 16 . . Kinetic 52 | 8 44 . . Thermal 28 | . 16 . 12 Explosive 3 | . . 2 1 Electromagnetic 1 | . . . 1 Robot Hit Streak 10 | 5 10 1 3 Robot Miss Streak 3 | 1 3 1 3 Penetration Max . | . . . . Secondary Targets 1 | . 1 . . Max Gunslinging Chain 1 | . 1 . . Shots Hit Robots 50 | 5 36 1 8 Core Hits 31 | 4 10 6 11 Critical Kills . | . . . . Critical Parts Destroyed 1 | . 1 . . Critical Strikes 1 | . 1 . . Smash 1 | . 1 . . Melee Attacks 6 | . 5 1 . Impact 6 | . 5 1 . Slashing . | . . . . Piercing . | . . . . Sneak Attacks 1 | . 1 . . Combat Hostiles . | . . . . Follow-up Attacks . | . . . . Damage Inflicted 928 | 59 419 174 276 Guns 529 | 57 319 . 153 Cannons . | . . . . Explosions 297 | . . 174 123 Melee 95 | . 95 . . Ramming 7 | 2 5 . . Kinetic 376 | 57 319 . . Thermal 233 | . . . 233 Explosive 190 | . . 174 16 Electromagnetic 27 | . . . 27 Impact 95 | . 95 . . Slashing . | . . . . Piercing . | . . . . Highest Corruption 5 | . 5 . . Average Corruption 5 | . 5 . . Corruption Purged . | . . . . Corruption Blocked . | . . . . Effects 23 | . 23 . . Message Errors 4 | . 4 . . Matter Fused 6 | . 6 . . Heat Flow Errors 4 | . 4 . . Energy Discharges 3 | . 3 . . Parts Rejected 1 | . 1 . . Parts Fused 1 | . 1 . . Data Loss (minor) 1 | . 1 . . Data Loss (major) 1 | . 1 . . Misfires 1 | . 1 . . Alerts 1 | . 1 . . Overload Shots . | . . . . Overflow Damage 34 | . 23 . 11 Projectiles . | . . . . Explosions 11 | . . . 11 Melee 23 | . 23 . . Knockbacks . | . . . . Impact . | . . . . Kinetic . | . . . . Secondary . | . . . . Self-Inflicted Damage 91 | . . 67 24 Shots 3 | . . 2 1 Rammed . | . . . . Targets Rammed 3 | 1 2 . . Kicked 3 | 1 2 . . Crushed . | . . . . Highest Temperature 234 | 6 234 . 103 Average Temperature 37 | 6 39 . 29 Received Heat Transfer 531 | 6 258 15 252 Siege Activations . | . . . . Robots Corrupted . | . . . . Combat Hostiles . | . . . . Parts Fried 1 | . 1 . . Impact Corruptions 2 | . 2 . . Robots Melted . | . . . . Combat Hostiles . | . . . . Parts Melted . | . . . . Heat Transferred 496 | . . . 496 Parts Sabotaged . | . . . . Parts Stolen . | . . . . Parts Stripped . | . . . . Power Chain Reactions 1 | . . . 1 Alert | -11 -10 -9 -8 ------- Run | Yrd Mat Mat Mat Peak Influence 286 | 30 71 277 286 Initial 117 | . 19 22 117 Average 47 | 17 27 55 211 Maximum Alert Level 1 | . . 1 1 Low Security (%) 91 | 100 100 89 31 Level 1 8 | . . 10 68 Level 2 . | . . . . Level 3 . | . . . . Level 4 . | . . . . Level 5 . | . . . . High Security . | . . . . Max Security . | . . . . Squads Dispatched 4 | . 2 1 1 Investigation 1 | . . 1 . Extermination . | . . . . Reinforcement 3 | . 2 . 1 Assault . | . . . . Garrison . | . . . . Intercept . | . . . . Searches Triggered . | . . . . Construction Impeded . | . . . . Haulers Reinforced . | . . . . Active Scanning Responses . | . . . . Cargo Convoy Interrupts . | . . . . Stealth | -11 -10 -9 -8 --------- Run | Yrd Mat Mat Mat Distress Signals 1 | . . 1 . Communications Jammed . | . . . . Distress Signals . | . . . . Times Spotted 49 | 1 14 18 16 Peak Tracking Total 13 | 1 4 13 12 Tactical Retreats 5 | . 3 2 . Traps | -11 -10 -9 -8 ------- Run | Yrd Mat Mat Mat Traps Triggered 2 | . 1 . 1 Indirectly . | . . . . Trap Hack Attempts . | . . . . Triggered . | . . . . Disarmed . | . . . . Reprogrammed . | . . . . Reused . | . . . . Traps Extracted . | . . . . Installed . | . . . . Triggered . | . . . . Machines | -11 -10 -9 -8 ---------- Run | Yrd Mat Mat Mat Machines Disabled 1 | . . 1 . Max in Single Turn 1 | . . 1 . Machines Repaired . | . . . . Machines Dismantled . | . . . . Machines Sabotaged . | . . . . Overloaded Fab Kills . | . . . . Hacking | -11 -10 -9 -8 --------- Run | Yrd Mat Mat Mat Machines Accessed 7 | . 2 1 4 Terminals 4 | . 1 1 2 Fabricators . | . . . . Repair Stations . | . . . . Recycling Units 2 | . 1 . 1 Scanalyzers 1 | . . . 1 Garrison Access . | . . . . Total Hacks 22 | . 6 5 11 Successful 17 | . 4 4 9 Failed 5 | . 2 1 2 Catastrophic . | . . . . Database Lockouts . | . . . . Manual 3 | . . 2 1 Terminals 10 | . 1 5 4 Fabricators . | . . . . Repair Stations . | . . . . Recycling Units 10 | . 5 . 5 Scanalyzers 2 | . . . 2 Garrison Access . | . . . . Terminal Hacks 7 | . . 4 3 Record 5 | . . 4 1 Robot Analysis 1 | . . . 1 Alert Level 1 | . . . 1 Fabricator Hacks . | . . . . Repair Station Hacks . | . . . . Recycling Unit Hacks 8 | . 4 . 4 Recycle Component 2 | . 1 . 1 Process 2 | . 1 . 1 Report Inventory 2 | . 1 . 1 Retrieve Matter 2 | . 1 . 1 Scanalyzer 2 | . . . 2 Insert Component 1 | . . . 1 Analyze 1 | . . . 1 Garrison Access Hacks . | . . . . Unauthorized Hacks . | . . . . Terminals . | . . . . Fabricators . | . . . . Repair Stations . | . . . . Recycling Units . | . . . . Scanalyzers . | . . . . Garrison Access . | . . . . Data Cores Recovered . | . . . . Used . | . . . . Hacking Detections 5 | . 2 1 2 Full Trace Events 1 | . . 1 . Feedback Events . | . . . . Feedback Blocked . | . . . . Robot Schematics Acquired . | . . . . Robots Built . | . . . . Authchips . | . . . . Time . | . . . . Total Robot Build Rating . | . . . . Part Schematics Acquired 1 | . . . 1 Parts Built . | . . . . Authchips . | . . . . Time . | . . . . Total Part Build Rating . | . . . . Parts Repaired . | . . . . Time . | . . . . Parts Recycled 2 | . 1 . 1 Recycled Matter 134 | . 9 . 125 Retrieved Matter 134 | . 9 . 125 Retrieved Components . | . . . . Parts Scanalyzed 1 | . . . 1 Part Schematics Acquired 1 | . . . 1 Parts Damaged . | . . . . Bothacking | -11 -10 -9 -8 ------------ Run | Yrd Mat Mat Mat Used RIF Installer . | . . . . Robots Hacked . | . . . . Non-combat . | . . . . Combat . | . . . . Robot Hacks Applied . | . . . . Relay Couplers Released . | . . . . Fabnet Peak Effective % . | . . . . Robots Rewired . | . . . . Allies Hacked . | . . . . Hacks Repelled . | . . . . Allies | -11 -10 -9 -8 -------- Run | Yrd Mat Mat Mat Total Allies . | . . . . Largest Group . | . . . . Highest-Rated Group . | . . . . Highest-Rated Ally . | . . . . Total Orders . | . . . . Ally Attacks . | . . . . Total Damage . | . . . . Kills . | . . . . Allies Corrupted . | . . . . Allies Melted . | . . . . Intel | -11 -10 -9 -8 ------- Run | Yrd Mat Mat Mat Robot Analysis Total 1 | . . . 1 Derelict Logs Recovered . | . . . . Drone Launches . | . . . . Drone Recoveries . | . . . . Exploration | -11 -10 -9 -8 ------------- Run | Yrd Mat Mat Mat Turns Passed 1747 | 393 1017 152 185 Spaces Moved 1294 | 282 326 244 442 Core 101 | 38 38 25 . Treads . | . . . . Legs 532 | 244 288 . . Wheels . | . . . . Hover . | . . . . Flight 661 | . . 219 442 Fastest Speed 28 | 50 50 29 28 Average Speed 95 | 110 218 36 28 Slowest Speed 400 | 120 400 100 105 Overloaded Moves . | . . . . Propulsion Burnouts . | . . . . Robots Hopped 11 | . . 3 8 Cave-ins Triggered 1 | . 1 . . Exploration Rate (%) 26 | 10 39 28 29 Regions Visited 3 Branch Regions . Pre-discovered Areas . | . . . . Known Exits Taken . | . . . . Unknown Exits Taken 3 | 1 1 1 . Scrap Searched . | . . . . Spaces Dug 16 | . 16 . . Terrain Destroyed 28 | . 16 3 9 Melee . | . . . . Projectile 16 | . 16 . . AOE 12 | . . 3 9 Terrain Rammed . | . . . . Walls Destroyed . | . . . . Machines Disabled . | . . . . Actions | -11 -10 -9 -8 --------- Run | Yrd Mat Mat Mat Total 1666 | 356 533 299 478 Wait 228 | 50 140 29 9 Move 1269 | 281 324 237 427 Hop 10 | . . 3 7 Pick Up 36 | 12 7 11 6 Fast Attach 3 | . . 2 1 Attach 26 | 7 4 8 7 Detach 3 | . . . 3 Swap 8 | . 5 1 2 Drop 10 | 1 1 5 3 Fire 63 | 4 44 2 13 Melee 6 | . 5 1 . Ram . | . . . . Kick 3 | 1 2 . . Crush . | . . . . Escape Stasis 1 | . 1 . . Rewire . | . . . . Trap . | . . . . Miscellaneous . | . . . . Route ------- -11/Scrapyard -10/Materials -9/Materials -8/Materials History --------- Turn | Location | Event 2 | -11/Scrapyard | Met Revision 17 66 | -11/Scrapyard | Discovered new exit (range 8) 394 | -11/Scrapyard | Entered Materials 398 | -10/Materials | Build established: Mutant 584 | -10/Materials | Crushed by falling debris 1376 | -10/Materials | Core integrity fell below 50% 1404 | -10/Materials | Discovered new exit (range 16) 1411 | -10/Materials | Entered another Materials area 1411 | -9/Materials | Evolved 2 slots: Propulsion x2 1554 | -9/Materials | Discovered new exit (range 10) 1563 | -9/Materials | Entered another Materials area 1563 | -8/Materials | Evolved 2 slots: Power x1, Utility x1 1748 | -8/Materials | Self-destructed Last Messages --------------- Processing Tank disabled. Chain reaction triggered in Lgt. Ion Engine. W-25 Informer destroyed. VTOL Module destroyed. U-05 Engineer lays Concrete. U-05 Engineer builds a Wall. Hvy. EM Shotgun destroyed. U-05 Engineer lays Concrete. G-47 Trooper destroyed. Imp. Flight Unit destroyed. Identified Airjet. U-05 Engineer builds a Wall. VTOL Module destroyed. Penetrated by Slug. Imp. Ion Engine destroyed. Critical hit (Burn: +37). Particle Gun destroyed. U-05 Engineer destroyed. U-05 Engineer lays Concrete. K-01 Serf collects debris. Map ----- +----------------------------------------------------+ | # " # #???#????????????????????????? | | # "" # !! #??? ???????????????????????? | | """ # !! #???# ???????????????????????? | | """ # #???# ???????????????????????? | | "" # #???# ???????????????????????? | | """ + #???# ???????????????????????? | | "" # #???# ???????????????????????? | | "" # ! #???# ???????????????????????? | | ^" ###### ###?###/####???????????????????? | | #######???# #???????????????????? | | #?????????# #???????????????????? | | #?????????# #???????????????????? | | #?????????# #???????????????????? | | #?????????# #???????????????????? | | #############?????????# #???????????????????? | | ??????????????????????####+###???????????????????? | | ###??????????????????????# #?????????????????????? | | #??????????????????????# #?????????????????????? | | # #????????????????????# #h##### ##??????????????? | | # #????????????????????# a ???????? | | # #????????????????????# #u########??????????????? | | # #???????#####???????####k#?????????????????????? | | # ######### #########!##k#?????????????????????? | | # ! a %gug#?????????????????????? | | # ######### ##### g=g=%#?????????????????????? | | # #??????###+####?# gYu@=#?????????????????????? | | # #??????# #?# #?????????????????????? | | # #??????# """ #?# " #?????????????????????? | | # ######## R" #?# """ #?????????????????????? | | # + """ #?# """ #?????????????????????? | | ########## #?#a """ #?????????????????????? | | ?????????# #?# """ #?????????????????????? | | ?????????########?# #?????????????????????? | | ??????????????????# #?????????????????????? | | ?????????????????? #?????????????????????? | | ??????????????????##"T"#####?????????????????????? | | ???????????????????#"""#?????????????????????????? | | ?????????????????????????????????????????????????? | | ?????????????????????????????????????????????????? | | ?????????????????????????????????????????????????? | | ?????????????????????????????????????????????????? | | ?????????????????????????????????????????????????? | | ?????????????????????????????????????????????????? | | ?????????????????????????????????????????????????? | | ?????????????????????????????????????????????????? | | ?????????????????????????????????????????????????? | | ?????????????????????????????????????????????????? | | ?????????????????????????????????????????????????? | | ?????????????????????????????????????????????????? | | ?????????????????????????????????????????????????? | +----------------------------------------------------+ Best States ------------- Heat Dissipation 41 Energy Generation 12 Energy Capacity 265 Matter Stores 300 Matter Capacity 400 Sight Range 16 Terrain Scan Density 110 Utility Shielding 33 Evasion (%) 64 Item Schematics ----------------- Hvy. EM Shotgun | -8/Materials | Scanalyzed Robot Schematics ------------------ None Fabricated ------------ Nothing Alien Tech Used ----------------- None Achievements -------------- Let's See Who's Tougher Unlikely Earthworm Challenges ------------ None Game ------ Seed LightningWeaponLegs Manual? 0 Play Time 01:01:17 Cumulative 2.6 hours Start 2024.03.31 @ 15:16:23 End 2024.03.31 @ 16:31:15 Sessions 1 Manual Loads 0 Difficulty Rogue Special Mode None Game No. 3 Rogue 3 Adventurer 0 Explorer 0 Win Type - Total 0 Types 0/0/0/0/0/0/0/0/0 Lore% 1 Gallery% 5 Achievement% 5 Wizard Run 0 Options --------- Layout 1 ASCII 0 Keyboard 0 Movement Numpad Keybinds 0 Fullscreen 1 Font 48/Proggy Map View 50x35 Zoom Use 78% Tactical HUD 0 Map Filters NONE Filters NONE Steam 1 RUN: 6d1e920b-e03b-4628-8a04-51d2bb5184bf